bitfinex/quotes_BTCUSD_20240803
["timestamp","ask_amount","ask_price","bid_price","bid_amount"]
[1722678345785,2.62376258,61705.0,61704.0,0.010032]
[1722678346765,2.63776258,61705.0,61704.0,0.010032]
[1722678347496,1.41505798,61705.0,61704.0,0.010032]
[1722678347698,1.41505798,61705.0,61704.0,0.153432]
[1722678347699,0.61045924,61705.0,61704.0,0.153432]
[1722678347920,0.30700524,61705.0,61704.0,0.153432]
[1722678348123,0.18545924,61705.0,61704.0,0.153432]
[1722678348345,0.18545924,61705.0,61704.0,0.153392]
[1722678348346,0.79318924,61705.0,61704.0,0.153392]
[1722678348744,0.53609724,61705.0,61704.0,0.153392]
[1722678348946,0.29300524,61705.0,61704.0,0.153392]
[1722678349186,0.53609724,61705.0,61704.0,0.153392]
[1722678349546,0.55009724,61705.0,61704.0,0.153392]
[1722678350172,0.18545924,61705.0,61704.0,0.153392]
[1722678350548,0.18545924,61705.0,61704.0,0.18169428]
[1722678350726,0.30700524,61705.0,61704.0,0.18169428]
[1722678352075,0.18545924,61705.0,61704.0,0.30324228]
[1722678352299,0.18545924,61705.0,61704.0,0.18169428]
[1722678353119,0.17145924,61705.0,61704.0,0.18169428]
[1722678353320,0.15745924,61705.0,61704.0,0.18169428]
[1722678353530,0.15745924,61705.0,61704.0,0.30324228]
[1722678353671,0.16745924,61705.0,61704.0,0.30324228]
[1722678354516,0.17745924,61705.0,61704.0,0.30324228]
[1722678354720,0.16745924,61705.0,61704.0,0.30324228]
[1722678354946,0.15745924,61705.0,61704.0,0.30324228]
[1722678355144,0.16445924,61705.0,61704.0,0.30324228]
[1722678355558,0.16445924,61705.0,61704.0,0.18169428]
[1722678356102,0.17245924,61705.0,61704.0,0.18169428]
[1722678356636,0.16545924,61705.0,61704.0,0.18169428]
[1722678357091,0.28700524,61705.0,61704.0,0.18169428]
[1722678357293,0.16545924,61705.0,61704.0,0.18169428]
[1722678357591,0.16545924,61705.0,61704.0,0.30324228]
[1722678358006,0.17545924,61705.0,61704.0,0.30324228]
[1722678358195,0.16745924,61705.0,61704.0,0.18169428]
[1722678358758,0.16445924,61705.0,61704.0,0.18169428]
[1722678359195,0.17145924,61705.0,61704.0,0.18169428]
[1722678364103,0.77918924,61705.0,61704.0,0.18169428]
[1722678364309,0.77918924,61705.0,61704.0,0.03829428]
[1722678364310,1.08463493,61705.0,61704.0,0.03829428]
[1722678364461,1.08463493,61705.0,61704.0,0.009992]
[1722678364462,0.84154293,61705.0,61704.0,0.009992]
[1722678366079,0.84132881,61705.0,61704.0,0.009992]
[1722678368681,0.35514481,61705.0,61704.0,0.009992]
[1722678369035,0.35514481,61705.0,61704.0,0.0381192]
[1722678369241,0.59823681,61705.0,61704.0,0.0381192]
[1722678369474,0.17145924,61705.0,61704.0,0.0381192]
[1722678369689,0.17145924,61705.0,61704.0,0.1786192]
[1722678371760,0.17145924,61705.0,61704.0,0.3001672]
[1722678372899,0.17145924,61705.0,61704.0,1.2725512]
[1722678373160,0.17145924,61705.0,61704.0,1.0294552]
[1722678373864,0.16445924,61705.0,61704.0,1.0294552]
[1722678374583,0.15745924,61705.0,61704.0,1.0294552]
[1722678375497,0.15845924,61705.0,61704.0,1.0314552]
[1722678375969,0.15945924,61705.0,61704.0,1.0314552]
[1722678377352,0.15945924,61705.0,61704.0,0.7883592]
[1722678377576,0.15945924,61705.0,61704.0,1.0314552]
[1722678378283,0.15745924,61705.0,61704.0,1.0294552]
[1722678378507,0.15745924,61705.0,61704.0,1.0304552]
[1722678378944,0.15745924,61705.0,61704.0,1.0294552]
[1722678379153,0.15745924,61705.0,61704.0,1.0304552]
[1722678379977,0.15745924,61705.0,61704.0,0.7873592]
[1722678380400,0.15745924,61705.0,61704.0,0.5442632]
[1722678381040,0.15745924,61705.0,61704.0,0.7873592]
[1722678381376,0.15745924,61705.0,61704.0,0.7863592]
[1722678381587,0.16145924,61705.0,61704.0,0.7863592]
[1722678381846,0.16545924,61705.0,61704.0,0.7863592]
[1722678382041,0.15745924,61705.0,61704.0,0.7863592]
[1722678382479,0.16045924,61705.0,61704.0,1.0294552]
[1722678382895,0.15845924,61705.0,61704.0,1.0294552]
[1722678384325,0.15745924,61705.0,61704.0,1.0294552]
[1722678385151,0.15845924,61705.0,61704.0,1.0314552]
[1722678385483,0.15945924,61705.0,61704.0,1.0314552]
[1722678387444,0.15845924,61705.0,61704.0,1.0294552]
[1722678387738,0.15945924,61705.0,61704.0,1.0314552]
[1722678388186,0.15845924,61705.0,61704.0,1.0314552]
[1722678388532,0.15945924,61705.0,61704.0,1.0314552]
[1722678393317,0.16028924,61705.0,61704.0,1.0314552]
[1722678393527,0.16028924,61705.0,61704.0,0.7883592]
[1722678394336,0.15928924,61705.0,61704.0,0.7883592]
[1722678395221,0.15828924,61705.0,61704.0,0.7863592]
[1722678395566,0.16628924,61705.0,61704.0,0.7863592]
[1722678395774,0.17328924,61705.0,61704.0,0.7863592]
[1722678397267,0.16528924,61705.0,61704.0,0.7863592]
[1722678397467,0.15828924,61705.0,61704.0,0.7863592]
[1722678397840,0.15828924,61705.0,61704.0,0.7258592]
[1722678404066,0.15828924,61705.0,61704.0,0.0381192]
[1722678404414,0.361442,61705.0,61704.0,0.0381192]
[1722678404865,0.361442,61705.0,61704.0,0.009992]
[1722678405070,0.30098924,61705.0,61704.0,0.009992]
[1722678405279,0.31098924,61705.0,61704.0,0.04263855]
[1722678405478,0.30598924,61705.0,61704.0,0.04263855]
[1722678405830,0.31398924,61705.0,61704.0,0.04263855]
[1722678406417,0.31398924,61705.0,61704.0,0.16418655]
[1722678406782,0.30898924,61705.0,61704.0,0.04263855]
[1722678406989,0.43053524,61705.0,61704.0,0.04263855]
[1722678407201,0.51041421,61705.0,61704.0,0.04263855]
[1722678407402,0.38886821,61705.0,61704.0,0.04263855]
[1722678407604,0.38886821,61705.0,61704.0,0.009992]
[1722678408012,0.51041421,61705.0,61704.0,0.009992]
[1722678408219,0.49782726,61705.0,61704.0,0.009992]
[1722678408349,0.49352626,61705.0,61704.0,0.009992]
[1722678409003,0.73661826,61705.0,61704.0,0.009992]
[1722678409685,0.97971026,61705.0,61704.0,0.009992]
[1722678410083,1.0768914,61705.0,61704.0,0.009992]
[1722678410421,0.8337994,61705.0,61704.0,0.009992]
[1722678410660,0.83361942,61705.0,61704.0,0.009992]
[1722678411116,0.49334628,61705.0,61704.0,0.009992]
[1722678411290,0.56622969,61705.0,61704.0,0.009992]
[1722678411524,0.56622969,61705.0,61704.0,0.04276762]
[1722678411525,0.49334628,61705.0,61704.0,0.04276762]
[1722678414524,0.56623225,61705.0,61704.0,0.04276762]
[1722678415386,0.37180028,61705.0,61704.0,0.04276762]
[1722678415625,0.49334628,61705.0,61704.0,0.04276762]
[1722678417442,0.43323424,61705.0,61704.0,0.04276762]
[1722678417647,0.49307576,61705.0,61704.0,0.04276762]
[1722678417893,0.43323424,61705.0,61704.0,0.04276762]
[1722678418092,0.49307575,61705.0,61704.0,0.04276762]
[1722678418740,0.73616775,61705.0,61704.0,0.04276762]
[1722678418927,1.05215685,61705.0,61704.0,0.04276762]
[1722678419080,0.97925975,61705.0,61704.0,0.009992]
[1722678420107,1.1007465,61705.0,61704.0,0.009992]
[1722678420460,0.98925975,61705.0,61704.0,0.009992]
[1722678421758,0.98125975,61705.0,61704.0,0.009992]
[1722678422065,1.23835175,61705.0,61704.0,0.009992]
[1722678422273,1.23135175,61705.0,61704.0,0.009992]
[1722678422464,1.00225975,61705.0,61704.0,0.009992]
[1722678422879,1.24535175,61705.0,61704.0,0.009992]
[1722678423114,1.23135175,61705.0,61704.0,0.009992]
[1722678423244,1.00225975,61705.0,61704.0,0.009992]
[1722678423450,0.94241824,61705.0,61704.0,0.009992]
[1722678423674,1.24554418,61705.0,61704.0,0.009992]
[1722678423862,1.23154418,61705.0,61704.0,0.009992]
[1722678424275,1.24554418,61705.0,61704.0,0.009992]
[1722678424534,1.00245218,61705.0,61704.0,0.009992]
[1722678425176,0.98845218,61705.0,61704.0,0.009992]
[1722678425450,0.97445218,61705.0,61704.0,0.009992]
[1722678425665,1.00245218,61705.0,61704.0,0.009992]
[1722678425848,0.98845218,61705.0,61704.0,0.009992]
[1722678426495,1.00245218,61705.0,61704.0,0.009992]
[1722678426794,1.12385888,61705.0,61704.0,0.009992]
[1722678427112,0.98840854,61705.0,61704.0,0.009992]
[1722678427335,1.10980884,61705.0,61704.0,0.009992]
[1722678427961,1.10980794,61705.0,61704.0,0.009992]
[1722678428162,1.03581764,61705.0,61704.0,0.009992]
[1722678428363,1.04981764,61705.0,61704.0,0.009992]
[1722678428539,1.06381764,61705.0,61704.0,0.009992]
[1722678430482,1.12384475,61705.0,61704.0,0.009992]
[1722678430902,1.02244535,61705.0,61704.0,0.009992]
[1722678431086,1.26480122,61705.0,61704.0,0.009992]
[1722678431292,1.56429322,61705.0,61704.0,0.009992]
[1722678431491,1.41857363,61705.0,61704.0,0.009992]
[1722678432059,1.40457363,61705.0,61704.0,0.009992]
[1722678432187,1.39057363,61705.0,61704.0,0.009992]
[1722678432391,1.40457363,61705.0,61704.0,0.009992]
[1722678432592,1.39857363,61705.0,61704.0,0.009992]
[1722678432841,1.53021832,61705.0,61704.0,0.009992]
[1722678433242,1.62891832,61705.0,61704.0,0.009992]
[1722678434168,1.6289082,61705.0,61704.0,0.009992]
[1722678434310,1.47224481,61705.0,61704.0,0.009992]
[1722678434509,1.4843407,61705.0,61704.0,0.009992]
[1722678434927,1.6299664,61705.0,61704.0,0.009992]
[1722678435131,1.6499664,61705.0,61704.0,0.009992]
[1722678435572,1.5043407,61705.0,61704.0,0.009992]
[1722678435932,1.64996058,61705.0,61704.0,0.009992]
[1722678436584,1.94996058,61705.0,61704.0,0.009992]
[1722678437626,2.12086058,61705.0,61704.0,0.009992]
[1722678437860,2.0882407,61705.0,61704.0,0.009992]
[1722678438066,1.4433888,61705.0,61704.0,0.009992]
[1722678438273,1.43112694,61705.0,61704.0,0.009992]
[1722678438447,1.43338487,61705.0,61704.0,0.009992]
[1722678438709,1.09029287,61705.0,61704.0,0.009992]
[1722678438907,0.95759287,61705.0,61704.0,0.009992]
[1722678439468,0.94759287,61705.0,61704.0,0.009992]
[1722678439633,0.95759287,61705.0,61704.0,0.009992]
[1722678440364,1.20068487,61705.0,61704.0,0.009992]
[1722678440765,0.95759287,61705.0,61704.0,0.009992]
[1722678443564,0.94759287,61705.0,61704.0,0.009992]
[1722678443766,0.85036589,61705.0,61704.0,0.009992]
[1722678444374,0.94730783,61705.0,61704.0,0.009992]
[1722678444802,0.95730783,61705.0,61704.0,0.009992]
[1722678446621,0.70421583,61705.0,61704.0,0.009992]
[1722678446831,0.60727389,61705.0,61704.0,0.009992]
[1722678447032,0.70433241,61705.0,61704.0,0.009992]
[1722678447873,0.31551501,61705.0,61704.0,0.27534]
[1722678448103,0.24263589,61705.0,61704.0,0.518436]
[1722678448329,0.24263589,61705.0,61704.0,0.79448432]
[1722678448809,0.24263589,61705.0,61704.0,0.55138832]
[1722678449033,0.22906093,61705.0,61704.0,0.55138832]
[1722678449248,0.21506093,61705.0,61704.0,0.55138832]
[1722678449696,0.22606093,61705.0,61704.0,0.55138832]
[1722678450539,0.22606093,61705.0,61704.0,0.79448432]
[1722678450955,0.16498824,61705.0,61704.0,0.79448432]
[1722678451727,0.17598824,61705.0,61704.0,0.79448432]
[1722678452160,0.16498824,61705.0,61704.0,0.79448432]
[1722678452363,0.15398824,61705.0,61704.0,0.79448432]
[1722678452568,0.15598824,61705.0,61704.0,0.79448432]
[1722678452777,0.15698824,61705.0,61704.0,0.79448432]
[1722678473018,0.15698824,61705.0,61704.0,0.48818832]
[1722678473569,0.15698824,61705.0,61704.0,0.40758832]
[1722678473776,0.15698824,61705.0,61704.0,0.04294432]
[1722678473986,0.28393575,61705.0,61704.0,0.04294432]
[1722678476590,0.21853575,61705.0,61704.0,0.04294432]
[1722678476807,0.21853575,61705.0,61704.0,0.16449232]
[1722678477279,0.21853575,61705.0,61704.0,0.40758832]
[1722678477732,0.21853575,61705.0,61704.0,0.48658832]
[1722678478660,0.21853575,61705.0,61704.0,0.24349232]
[1722678479315,0.21853575,61705.0,61704.0,0.30519232]
[1722678479520,0.21853575,61705.0,61704.0,0.54828832]
[1722678480155,0.21853575,61705.0,61704.0,0.30519232]
[1722678480580,0.21853575,61705.0,61704.0,0.24349232]
[1722678480788,0.21856056,61705.0,61704.0,0.24349232]
[1722678481320,0.21842123,61705.0,61704.0,0.24349232]
[1722678482152,0.21842123,61705.0,61704.0,0.48658832]
[1722678482770,0.21842123,61705.0,61704.0,0.72968432]
[1722678483182,0.15698824,61705.0,61704.0,1.03448032]
[1722678483792,0.15698824,61705.0,61704.0,1.16915161]
[1722678484042,0.15498824,61705.0,61704.0,1.41224761]
[1722678484245,0.15498824,61705.0,61704.0,1.16915161]
[1722678484447,0.15698824,61705.0,61704.0,1.16915161]
[1722678484822,0.15498824,61705.0,61704.0,1.16915161]
[1722678485025,0.15398824,61705.0,61704.0,1.16915161]
[1722678485223,0.15498824,61705.0,61704.0,1.16915161]
[1722678485486,0.15598824,61705.0,61704.0,1.03448032]
[1722678485665,0.15498824,61705.0,61704.0,1.03448032]
[1722678486043,0.15598824,61705.0,61704.0,1.03648032]
[1722678488515,0.15598824,61705.0,61704.0,1.09288032]
[1722678489816,0.15598824,61705.0,61704.0,1.03648032]
[1722678489989,0.15598824,61705.0,61704.0,1.09288032]
[1722678490821,0.00283,61705.0,61704.0,1.33597632]
[1722678491001,0.00283,61705.0,61704.0,1.58064154]
[1722678491202,0.00083,61710.0,61709.0,1.047866]
[1722678491604,0.00083,61710.0,61709.0,1.08061406]
[1722678492615,0.00183,61710.0,61709.0,1.08261406]
[1722678494052,0.00283,61710.0,61709.0,1.08461406]
[1722678494462,0.16028924,61710.0,61709.0,0.64443806]
[1722678494798,0.16028924,61710.0,61709.0,0.03674806]
[1722678494996,0.30698924,61710.0,61709.0,0.03674806]
[1722678495321,0.86263998,61710.0,61709.0,0.004]
[1722678495537,1.12899912,61710.0,61709.0,0.002]
[1722678495744,1.03185055,61710.0,61709.0,0.002]
[1722678496107,0.97545055,61710.0,61709.0,0.002]
[1722678496318,1.08362601,61710.0,61709.0,0.003]
[1722678496679,0.73237855,61710.0,61709.0,0.002]
[1722678496904,0.84355233,61710.0,61709.0,0.003]
[1722678497112,0.84255233,61710.0,61709.0,0.001]
[1722678497369,0.74527008,61710.0,61709.0,0.001]
[1722678497499,0.84243936,61710.0,61709.0,0.001]
[1722678498078,0.45353728,61710.0,61709.0,0.001]
[1722678498282,0.45353728,61710.0,61709.0,0.03266025]
[1722678498489,0.38066208,61710.0,61706.0,0.121544]
[1722678498689,0.09513,61710.0,61709.0,0.03366025]
[1722678498821,0.14278132,61710.0,61708.0,0.121539]
[1722678499020,0.08113,61710.0,61709.0,0.03266025]
[1722678499231,0.08113,61710.0,61706.0,0.364629]
[1722678499232,0.14261311,61710.0,61706.0,0.364629]
[1722678499442,0.14261311,61710.0,61707.0,0.121541]
[1722678499443,0.06148311,61709.0,61707.0,0.121541]
[1722678500244,0.15745924,61708.0,61707.0,0.121541]
[1722678501189,0.15745924,61708.0,61704.0,0.009992]
[1722678501601,0.15745924,61708.0,61707.0,0.001]
[1722678501803,0.16545924,61708.0,61707.0,0.001]
[1722678502025,0.16545924,61708.0,61706.0,0.121543]
[1722678502229,0.17345924,61708.0,61707.0,0.001]
[1722678503176,0.16545924,61708.0,61707.0,0.001]
[1722678503567,0.17345924,61708.0,61707.0,0.001]
[1722678503992,0.16545924,61708.0,61707.0,0.001]
[1722678504425,0.17345924,61708.0,61707.0,0.001]
[1722678505439,0.23457962,61708.0,61707.0,0.001]
[1722678505776,0.17345924,61708.0,61707.0,0.001]
[1722678506165,0.17345924,61708.0,61707.0,0.122542]
[1722678506505,0.17345924,61708.0,61707.0,0.15525999]
[1722678507127,0.17345924,61708.0,61707.0,0.47994399]
[1722678507329,0.17345924,61708.0,61707.0,0.72302799]
[1722678511010,0.17345924,61708.0,61707.0,0.96611199]
[1722678512125,0.16545924,61708.0,61707.0,0.96511199]
[1722678512527,0.15745924,61708.0,61707.0,0.96511199]
[1722678512928,0.16545924,61708.0,61707.0,0.96511199]
[1722678513281,0.15745924,61708.0,61707.0,0.96511199]
[1722678513626,0.15845924,61708.0,61707.0,0.96711199]
[1722678513830,0.15845924,61708.0,61707.0,0.9770836]
[1722678514441,0.001,61708.0,61707.0,0.9770836]
[1722678514661,0.001,61708.0,61707.0,1.0484836]
[1722678515046,0.001,61708.0,61707.0,1.3015676]
[1722678515394,0.001,61708.0,61707.0,1.2915676]
[1722678516176,0.001,61708.0,61707.0,1.3015676]
[1722678516568,0.001,61708.0,61707.0,1.2915676]
[1722678517235,0.00083,61710.0,61709.0,1.093842]
[1722678517457,0.00083,61710.0,61709.0,1.293542]
[1722678517692,0.00083,61710.0,61709.0,1.32621768]
[1722678518566,0.00157439,61728.0,61719.0,0.0802]
[1722678518567,0.0643,61726.0,61719.0,0.0802]
[1722678518772,0.15745924,61725.0,61724.0,0.364525]
[1722678518912,0.15745924,61725.0,61724.0,0.607542]
[1722678519119,0.15745924,61725.0,61724.0,0.64021768]
[1722678520457,0.17145924,61725.0,61724.0,0.64121768]
[1722678520670,0.17145924,61725.0,61724.0,0.39820068]
[1722678521529,0.15745924,61725.0,61724.0,0.39720068]
[1722678521731,0.17145924,61725.0,61724.0,0.39720068]
[1722678521935,0.17945924,61725.0,61724.0,0.39820068]
[1722678522337,0.16545924,61725.0,61724.0,0.64121768]
[1722678522605,0.17345924,61725.0,61724.0,0.64121768]
[1722678526035,0.17345924,61725.0,61724.0,0.88423468]
[1722678526244,0.17345924,61725.0,61724.0,0.64121768]
[1722678527691,0.17345924,61725.0,61724.0,1.02753468]
[1722678528954,0.16545924,61725.0,61724.0,1.03727836]
[1722678529165,0.15745924,61725.0,61724.0,1.03627836]
[1722678531278,0.15745924,61725.0,61724.0,0.97317836]
[1722678537469,0.0777,61736.0,61735.0,0.121487]
[1722678537672,0.23515924,61736.0,61735.0,0.177887]
[1722678537875,0.23515924,61736.0,61735.0,0.69618575]
[1722678539305,0.24815924,61736.0,61735.0,0.69718575]
[1722678539539,0.26015924,61736.0,61735.0,0.69718575]
[1722678539755,0.18245924,61736.0,61735.0,0.69718575]
[1722678541738,0.32285924,61736.0,61735.0,0.64078575]
[1722678542328,0.32285924,61736.0,61735.0,0.03335075]
[1722678542673,0.80475404,61736.0,61735.0,0.03335075]
[1722678542878,1.29069404,61736.0,61735.0,0.03335075]
[1722678543082,1.29069404,61736.0,61735.0,0.001]
[1722678543462,1.04772404,61736.0,61735.0,0.001]
[1722678545307,0.99132404,61736.0,61735.0,0.001]
[1722678547076,1.00121999,61736.0,61735.0,0.001]
[1722678547281,0.99132404,61736.0,61735.0,0.001]
[1722678549018,0.99170939,61736.0,61735.0,0.001]
[1722678549807,0.74873939,61736.0,61735.0,0.001]
[1722678551400,0.99170939,61736.0,61735.0,0.001]
[1722678553399,0.99253939,61736.0,61735.0,0.001]
[1722678554154,1.06530334,61736.0,61735.0,0.001]
[1722678554359,0.99253939,61736.0,61735.0,0.001]
[1722678555286,1.06535604,61736.0,61735.0,0.001]
[1722678555600,0.99253939,61736.0,61735.0,0.001]
[1722678556163,0.99247546,61736.0,61735.0,0.001]
[1722678556630,1.08958378,61736.0,61735.0,0.001]
[1722678557019,1.08960549,61736.0,61735.0,0.001]
[1722678557619,0.84663549,61736.0,61735.0,0.001]
[1722678557843,0.38505046,61736.0,61735.0,0.365461]
[1722678558051,0.24465046,61736.0,61735.0,0.365461]
[1722678558251,0.24476228,61736.0,61735.0,0.365461]
[1722678558421,0.18328924,61736.0,61735.0,0.39785367]
[1722678558832,0.24467524,61736.0,61735.0,0.39785367]
[1722678559033,0.18328924,61736.0,61735.0,0.39785367]
[1722678560326,0.24470992,61736.0,61735.0,0.03339267]
[1722678560516,0.32550992,61736.0,61735.0,0.03339267]
[1722678560636,0.39836511,61736.0,61735.0,0.001]
[1722678560836,0.39836511,61736.0,61735.0,0.03339267]
[1722678561494,0.32550992,61736.0,61735.0,0.03339267]
[1722678562010,0.32550992,61736.0,61735.0,0.001]
[1722678562584,0.42263995,61736.0,61735.0,0.001]
[1722678563218,0.42248917,61736.0,61735.0,0.001]
[1722678563608,0.75611414,61736.0,61735.0,0.001]
[1722678563805,1.24205414,61736.0,61735.0,0.001]
[1722678564755,1.38784308,61736.0,61735.0,0.001]
[1722678565170,1.34014784,61736.0,61735.0,0.001]
[1722678565328,1.34014793,61736.0,61735.0,0.001]
[1722678565901,1.34018018,61736.0,61735.0,0.001]
[1722678566456,1.24205414,61736.0,61735.0,0.001]
[1722678566865,0.99908414,61736.0,61735.0,0.001]
[1722678567079,0.93781424,61736.0,61735.0,0.001]
[1722678567283,0.99932714,61736.0,61735.0,0.001]
[1722678569239,0.9991122,61736.0,61735.0,0.001]
[1722678569613,1.48789465,61736.0,61735.0,0.001]
[1722678569809,1.44025061,61736.0,61735.0,0.001]
[1722678571203,1.44073945,61736.0,61735.0,0.001]
[1722678572439,1.42873945,61736.0,61735.0,0.001]
[1722678572635,0.0663,61727.0,61722.0,0.13139788]
[1722678572864,0.00157439,61724.0,61723.0,0.03231359]
[1722678573059,0.21929308,61724.0,61723.0,0.03231359]
[1722678573844,0.2192491,61724.0,61723.0,0.54084459]
[1722678574460,0.2192783,61724.0,61723.0,0.54084459]
[1722678574659,0.15745924,61724.0,61723.0,0.54084459]
[1722678575011,0.16245924,61724.0,61723.0,0.54084459]
[1722678575137,0.16745924,61724.0,61723.0,0.54084459]
[1722678576230,0.16745924,61724.0,61723.0,0.78386559]
[1722678576403,0.16745924,61724.0,61723.0,0.54084459]
[1722678578666,0.16745924,61724.0,61723.0,0.78386559]
[1722678580131,0.16745924,61724.0,61723.0,1.02688659]
[1722678585539,0.16745924,61724.0,61723.0,1.02779959]
[1722678595384,0.16745924,61724.0,61723.0,1.08409959]
[1722678596625,0.16745924,61724.0,61723.0,1.02779959]
[1722678596847,0.16745924,61724.0,61723.0,0.96189959]
[1722678598262,0.23015924,61724.0,61723.0,0.39775759]
[1722678598420,0.23015924,61724.0,61723.0,0.03322659]
[1722678598820,0.29115342,61724.0,61723.0,0.03322659]
[1722678599073,0.23015924,61724.0,61723.0,0.15473659]
[1722678599392,0.23015924,61724.0,61723.0,0.15473997]
[1722678601409,0.35166724,61724.0,61723.0,0.03322997]
[1722678601622,0.49377721,61724.0,61723.0,0.03322997]
[1722678601821,0.37226921,61724.0,61723.0,0.000913]
[1722678602000,0.49377721,61724.0,61723.0,0.000913]
[1722678602182,0.56668283,61724.0,61723.0,0.000913]
[1722678602616,0.44517483,61724.0,61723.0,0.000913]
[1722678603027,0.44517483,61724.0,61723.0,0.03328515]
[1722678603229,0.44517483,61724.0,61723.0,0.000913]
[1722678603547,0.56668283,61724.0,61723.0,0.03328515]
[1722678603942,0.56668283,61724.0,61723.0,0.000913]
[1722678604354,0.49377721,61724.0,61723.0,0.000913]
[1722678604564,0.56668283,61724.0,61723.0,0.000913]
[1722678604741,0.44517483,61724.0,61723.0,0.000913]
[1722678604939,0.49377721,61724.0,61723.0,0.03328515]
[1722678605304,0.49354815,61724.0,61723.0,0.03328515]
[1722678606216,0.22864015,61724.0,61723.0,0.29289515]
[1722678606383,0.16745924,61724.0,61723.0,0.53591615]
[1722678606602,0.16745924,61724.0,61723.0,0.77893715]
[1722678606809,0.16726429,61724.0,61723.0,1.02195815]
[1722678607971,0.16726429,61724.0,61723.0,0.77893715]
[1722678617591,0.16726429,61724.0,61723.0,1.02195815]
[1722678619478,0.16511446,61724.0,61723.0,1.02195815]
[1722678620884,0.16011446,61724.0,61723.0,1.02195815]
[1722678621819,0.16011446,61724.0,61723.0,1.27497915]
[1722678621820,0.005,61724.0,61723.0,1.27497915]
[1722678622049,0.005,61724.0,61723.0,1.26497915]
[1722678622275,0.005,61724.0,61723.0,1.27497915]
[1722678622501,0.006,61724.0,61723.0,1.27697915]
[1722678622706,0.001,61724.0,61723.0,1.27697915]
[1722678623366,0.00240439,61736.0,61735.0,0.364461]
[1722678623576,0.15986363,61736.0,61735.0,0.663735]
[1722678623780,0.15986363,61736.0,61735.0,0.69605708]
[1722678624805,0.16686363,61736.0,61735.0,0.69605708]
[1722678625161,0.16528924,61736.0,61735.0,0.69605708]
[1722678625884,0.17128924,61736.0,61735.0,0.63975708]
[1722678626934,0.17128924,61736.0,61735.0,1.01583108]
[1722678631944,0.17128924,61736.0,61735.0,1.00739575]
[1722678632384,0.17128924,61736.0,61735.0,1.07863425]
[1722678632984,0.17128924,61736.0,61735.0,1.01703425]
[1722678634084,0.17128924,61736.0,61735.0,0.88393425]
[1722678634298,0.24948924,61736.0,61735.0,0.88393425]
[1722678634741,0.24948924,61736.0,61735.0,0.38834775]
[1722678634971,0.48917424,61736.0,61735.0,0.02388675]
[1722678635189,0.17128924,61736.0,61729.0,0.242994]
[1722678635410,0.1406,61731.0,61730.0,0.14532194]
[1722678635648,0.29805924,61731.0,61730.0,0.14532194]
[1722678636941,0.29905924,61731.0,61730.0,0.14532194]
[1722678638371,0.29905924,61731.0,61730.0,0.38831494]
[1722678639990,0.30005924,61731.0,61730.0,0.38831494]
[1722678640634,0.30005924,61731.0,61730.0,0.63130794]
[1722678642251,0.29905924,61731.0,61730.0,0.63130794]
[1722678642460,0.29805924,61731.0,61730.0,0.63130794]
[1722678642661,0.29805924,61731.0,61730.0,0.63330794]
[1722678643545,0.29805924,61731.0,61730.0,0.39031494]
[1722678644128,0.29805924,61731.0,61730.0,0.38931494]
[1722678644292,0.29805924,61731.0,61730.0,0.14632194]
[1722678644718,0.29805924,61731.0,61730.0,0.38931494]
[1722678645509,0.29805924,61731.0,61730.0,0.38831494]
[1722678645905,0.30105924,61731.0,61730.0,0.38831494]
[1722678646374,0.30405924,61731.0,61730.0,0.38831494]
[1722678646784,0.30105924,61731.0,61730.0,0.38831494]
[1722678647225,0.30405924,61731.0,61730.0,0.38831494]
[1722678647398,0.30405924,61731.0,61730.0,0.63130794]
[1722678647613,0.22465924,61731.0,61730.0,0.63130794]
[1722678647972,0.16345924,61731.0,61730.0,0.63130794]
[1722678650298,0.16428924,61731.0,61730.0,0.63130794]
[1722678650666,0.16428924,61731.0,61730.0,0.87430094]
[1722678650968,0.16428924,61731.0,61730.0,1.01920094]
[1722678653893,0.16128924,61731.0,61730.0,1.01920094]
[1722678654470,0.15828924,61731.0,61730.0,1.01920094]
[1722678655112,0.15828924,61731.0,61730.0,1.02020094]
[1722678655926,0.15828924,61731.0,61730.0,1.02120094]
[1722678661881,0.15828924,61731.0,61730.0,0.95860094]
[1722678665104,0.15828924,61731.0,61730.0,0.87630094]
[1722678671911,0.15828924,61731.0,61730.0,0.63330794]
[1722678671912,0.22128924,61731.0,61730.0,0.63330794]
[1722678672133,0.29928924,61731.0,61730.0,0.63330794]
[1722678672818,0.29928924,61731.0,61730.0,0.39031494]
[1722678673492,0.29928924,61731.0,61730.0,0.68960794]
[1722678675050,0.29928924,61731.0,61730.0,0.68760794]
[1722678675259,0.30928924,61731.0,61730.0,0.68760794]
[1722678675439,0.30928924,61731.0,61730.0,0.44461494]
[1722678675676,0.30428924,61731.0,61730.0,0.44461494]
[1722678675881,0.30328924,61731.0,61730.0,0.44461494]
[1722678676100,0.30728924,61731.0,61730.0,0.44461494]
[1722678676311,0.30728924,61731.0,61730.0,0.14532294]
[1722678676527,0.30728924,61731.0,61730.0,0.38831594]
[1722678680506,0.30728924,61731.0,61730.0,0.63130894]
[1722678680720,0.30728924,61731.0,61730.0,0.68760894]
[1722678680923,0.30728924,61731.0,61730.0,0.44461594]
[1722678681986,0.67177224,61731.0,61730.0,0.02382694]
[1722678682191,0.97473669,61731.0,61730.0,0.02382694]
[1722678682394,0.97473669,61731.0,61724.0,0.000913]
[1722678682395,0.512919,61725.0,61724.0,0.000913]
[1722678682601,1.02966669,61725.0,61724.0,0.000913]
[1722678682998,1.39420341,61725.0,61724.0,0.000913]
[1722678683271,1.21637969,61725.0,61724.0,0.000913]
[1722678683479,1.15640424,61725.0,61724.0,0.000913]
[1722678683928,1.27785862,61725.0,61724.0,0.000913]
[1722678684399,1.15640424,61725.0,61724.0,0.000913]
[1722678684847,1.17040424,61725.0,61724.0,0.000913]
[1722678685080,1.15640424,61725.0,61724.0,0.000913]
[1722678685335,1.17040424,61725.0,61724.0,0.000913]
[1722678685593,1.15640424,61725.0,61724.0,0.000913]
[1722678685793,1.16940424,61725.0,61724.0,0.000913]
[1722678686241,1.15640424,61725.0,61724.0,0.000913]
[1722678686468,1.17040424,61725.0,61724.0,0.000913]
[1722678686681,1.22959638,61725.0,61724.0,0.000913]
[1722678687107,1.24359638,61725.0,61724.0,0.000913]
[1722678687281,1.22959638,61725.0,61724.0,0.000913]
[1722678687612,1.24359638,61725.0,61724.0,0.000913]
[1722678687817,1.22959638,61725.0,61724.0,0.000913]
[1722678688022,1.24359638,61725.0,61724.0,0.000913]
[1722678688296,1.21559638,61725.0,61724.0,0.000913]
[1722678688730,1.24359638,61725.0,61724.0,0.000913]
[1722678689063,1.17040424,61725.0,61724.0,0.000913]